bitfinex-derivatives/quotes_ETHF0:USTF0_20250702
["timestamp","ask_amount","ask_price","bid_price","bid_amount"]
[1751487443481,0.76991,2596.2,2596.1,3.38492]
[1751487443682,5.995,2596.3,2596.2,0.76991]
[1751487443883,41.951,2596.3,2596.2,0.76991]
[1751487444082,42.72088,2596.3,2596.2,0.76991]
[1751487445377,41.951,2596.3,2596.2,0.76991]
[1751487445583,42.72088,2596.3,2596.2,0.76991]
[1751487447080,0.76991,2596.2,2596.1,1.20091]
[1751487447384,4.09210791,2596.2,2596.1,0.76991]
[1751487447586,6.15070791,2596.2,2596.1,0.76991]
[1751487447987,0.76997,2596.1,2596.0,0.76994]
[1751487448189,38.0096,2596.1,2596.0,0.76994]
[1751487448390,38.77954,2596.1,2596.0,0.76994]
[1751487448584,38.0096,2596.1,2596.0,0.76994]
[1751487448984,66.598,2596.7,2596.6,0.76979]
[1751487449189,66.598,2596.7,2596.6,4.09198791]
[1751487449190,11.153,2596.7,2596.6,4.09198791]
[1751487449388,0.76968,2597.0,2596.9,0.7697]
[1751487450590,36.72066,2597.1,2597.0,0.76967]
[1751487451187,0.76969,2597.0,2596.9,0.76968]
[1751487451588,0.76972,2596.9,2596.8,0.76971]
[1751487451791,36.71972,2596.9,2596.8,0.76971]
[1751487451989,35.95,2596.9,2596.8,0.76971]
[1751487452391,36.7197,2596.9,2596.8,0.76971]
[1751487452891,35.95,2596.9,2596.8,0.76971]
[1751487453086,36.7197,2596.9,2596.8,0.76971]
[1751487453686,35.95,2596.9,2596.8,0.76971]
[1751487453886,36.7197,2596.9,2596.8,0.76971]
[1751487454592,0.76973,2596.8,2596.7,2.0064]
[1751487454793,0.76973,2596.8,2596.7,2.77616]
[1751487455094,0.76976,2596.7,2596.6,0.4309]
[1751487455295,0.76988,2596.3,2596.2,2.0746]
[1751487455495,47.86088,2596.3,2596.2,2.0746]
[1751487455792,47.86088,2596.3,2596.2,2.8445]
[1751487455989,0.76993,2596.2,2596.1,0.76991]
[1751487456194,0.76995,2596.1,2596.0,0.76994]
[1751487456384,3.9744,2596.1,2596.0,0.76994]
[1751487456587,4.74434,2596.1,2596.0,0.76994]
[1751487457896,0.76997,2596.0,2595.9,2.9544]
[1751487458096,36.70597,2596.0,2595.9,2.9544]
[1751487458398,36.70597,2596.0,2595.9,0.77]
[1751487458994,0.77001,2595.9,2595.8,0.77]
[1751487459191,0.77003,2595.8,2595.7,2.66144]
[1751487459396,0.77003,2595.8,2595.7,0.77004]
[1751487461099,0.77009,2595.7,2595.6,0.77006]
[1751487461400,0.7701,2595.6,2595.5,0.77009]
[1751487462199,0.77011,2595.5,2595.4,2.95482]
[1751487462396,2.80951,2595.5,2595.4,2.1847]
[1751487462602,9.71679664,2595.5,2595.4,1e-08]
[1751487462895,15.61671162,2595.5,2595.4,1e-08]
[1751487463300,0.7704,2594.6,2594.5,0.7704]
[1751487463501,35.929,2594.6,2594.5,0.7704]
[1751487464004,36.69938,2594.6,2594.5,0.7704]
[1751487464193,35.929,2594.6,2594.1,4.1371]
[1751487464398,2.83722,2594.5,2594.1,4.1371]
[1751487464598,0.77044,2594.4,2594.1,4.1371]
[1751487464802,35.933,2594.3,2594.0,0.77055]
[1751487465004,0.7705,2594.2,2594.1,0.77053]
[1751487465197,2.8373,2594.2,2594.1,0.77053]
[1751487465397,2.0668,2594.2,2593.6,1.9267]
[1751487465602,11.90854,2594.1,2594.0,0.77055]
[1751487465995,11.90728664,2594.1,2593.0,8.83436664]
[1751487466202,0.77061,2593.9,2593.2,0.7708]
[1751487466401,0.77061,2593.9,2593.0,6.1141]
[1751487466402,11.138,2593.8,2593.7,0.77065]
[1751487468301,11.138,2593.8,2593.1,6.90728664]
[1751487468302,11.138,2593.8,2593.0,1.9936]
[1751487468502,1.92663,2593.7,2593.2,0.77079]
[1751487468703,0.7708,2593.2,2593.1,2.0188]
[1751487469000,0.77083,2593.1,2593.0,0.77084]
[1751487469200,0.77083,2593.1,2592.9,0.77087]
[1751487469601,0.00601482,2593.0,2592.9,0.77087]
[1751487470106,0.77091,2592.9,2592.7,2.0021]
[1751487470300,0.77091,2592.9,2592.8,0.77091]
[1751487470701,0.77092,2592.8,2592.7,2.0021]
[1751487470900,0.77092,2592.8,2592.7,2.77305]
[1751487471101,0.77095,2592.7,2592.6,3.9484]
[1751487471295,0.00616357,2592.8,2592.7,0.77095]
[1751487471501,35.94,2592.9,2592.8,0.77092]
[1751487471703,35.94,2592.9,2592.6,8.92608664]
[1751487471906,36.71691482,2592.9,2592.8,0.77092]
[1751487472308,35.94601482,2592.9,2592.8,0.77092]
[1751487473707,0.00601482,2592.9,2592.8,0.77092]
[1751487474210,11.146,2593.4,2593.3,0.77077]
[1751487474403,47.089,2593.4,2593.3,0.77077]
[1751487474605,66.637,2593.6,2593.5,0.77071]
[1751487476804,0.77064,2593.8,2593.5,5.0]
[1751487477105,0.77058,2594.0,2593.9,0.77057]
[1751487477405,0.77054,2594.1,2594.0,0.77054]
[1751487477909,35.942,2594.1,2593.5,1.9308]
[1751487478301,36.71255,2594.1,2594.0,0.77056]
[1751487479509,35.942,2594.1,2594.0,0.77056]
[1751487481708,1.9078,2594.3,2594.2,0.7705]
[1751487481903,36.70846,2594.4,2594.3,0.77046]
[1751487482907,0.77051,2594.2,2594.1,0.77051]
[1751487483101,0.77048,2594.3,2594.2,0.77048]
[1751487483707,35.938,2594.4,2594.3,0.77047]
[1751487483910,0.77049,2594.3,2594.2,0.77048]
[1751487484309,11.147,2594.5,2594.4,0.77044]
[1751487484914,11.91741,2594.5,2594.4,0.77044]
[1751487485210,11.147,2594.5,2594.4,0.77044]
[1751487485807,11.91741,2594.5,2594.4,0.77044]
[1751487486006,11.147,2594.5,2594.4,0.77044]
[1751487486207,11.91741,2594.5,2594.4,0.77044]
[1751487486609,11.147,2594.5,2594.4,0.77044]
[1751487486913,11.91741,2594.5,2594.4,0.77044]
[1751487487113,11.147,2594.5,2594.4,0.77044]
[1751487487914,11.91741,2594.5,2594.4,0.77044]
[1751487488814,11.147,2594.5,2594.4,0.77044]
[1751487489912,49.1287,2595.0,2594.9,0.77029]
[1751487490110,49.1287,2595.0,2594.4,10.73183664]
[1751487490415,49.1287,2595.0,2594.3,2.0091]
[1751487490416,0.7703,2594.9,2594.8,0.77029]
[1751487490614,0.7703,2594.9,2594.3,2.0091]
[1751487490615,13.2037,2595.0,2594.9,0.77029]
[1751487491109,11.133,2595.0,2594.9,0.77029]
[1751487491316,2.74614,2595.1,2595.0,0.77026]
[1751487491614,3.64594973,2595.1,2595.0,0.77026]
[1751487491815,2.87571973,2595.1,2595.0,0.77026]
[1751487492011,1.9759,2595.1,2595.0,0.77026]
[1751487492211,38.63399,2595.3,2595.2,0.7702]
[1751487492410,39.53431599,2595.3,2595.2,0.7702]
[1751487493615,0.77023,2595.2,2595.1,0.77021]
[1751487493817,1.67055599,2595.2,2595.1,0.77021]
[1751487495118,0.90032599,2595.2,2594.8,1.9508]
[1751487495314,0.77029,2595.0,2594.9,0.77027]
[1751487496520,2.74549,2595.0,2594.9,0.77027]
[1751487497415,0.77029,2594.9,2594.8,1.9508]
[1751487498415,1.9752,2595.0,2594.8,1.9508]
[1751487498620,2.78749,2594.9,2594.8,1.9508]
[1751487498822,0.77037,2594.7,2594.5,0.7704]
[1751487499015,0.77038,2594.6,2594.5,2.0547]
[1751487499521,0.77038,2594.6,2594.5,2.82511]
[1751487499820,0.77038,2594.6,2594.5,2.0547]
[1751487501913,0.77038,2594.6,2594.5,2.82511]
[1751487502312,0.77038,2594.6,2594.5,2.0547]
[1751487502518,0.77038,2594.6,2594.5,2.82511]
[1751487504023,0.77037,2594.7,2594.6,0.77034]
[1751487506225,0.77038,2594.6,2594.5,2.82509]
[1751487506421,1.9752,2595.0,2593.6,55.499]
[1751487506626,0.77051,2594.3,2594.2,0.77048]
[1751487508725,0.77054,2594.2,2594.1,0.77051]
[1751487509124,1.92622,2594.3,2593.9,4.0774]
[1751487509426,0.77056,2594.0,2593.9,4.84796]
[1751487510327,0.77055,2594.1,2594.0,0.77053]
[1751487510520,2.0276,2594.5,2594.4,0.77044]
[1751487510723,0.77047,2594.4,2594.3,0.77045]
[1751487510928,1.6738726,2594.4,2594.3,0.77045]
[1751487511822,0.77049,2594.3,2594.2,0.77047]
[1751487512019,1.6738926,2594.3,2594.2,0.77047]
[1751487513831,0.77052,2594.2,2594.1,0.7705]
[1751487516832,1.92626,2594.3,2593.9,1.9876]
[1751487517031,0.77056,2594.0,2593.9,0.77057]
[1751487518034,0.77062,2593.9,2593.8,0.7706]
[1751487518235,2.88542,2593.9,2593.8,0.7706]
[1751487520538,0.77067,2593.7,2593.6,0.77065]
[1751487521434,0.77072,2593.6,2593.5,0.77069]
[1751487521634,0.77072,2593.6,2592.7,6.81292158]
[1751487521635,3.32739968,2593.6,2592.9,3.32739968]
[1751487521836,0.77083,2593.2,2593.1,0.77079]
[1751487522233,0.77083,2593.2,2593.1,0.77083]
[1751487522539,0.77081,2593.2,2593.1,0.77079]
[1751487523033,0.77079,2593.3,2592.9,2.0518]
[1751487523243,16.05567,2593.4,2593.3,0.77077]
[1751487523832,4.1659,2593.4,2593.3,0.77077]
[1751487524138,2.76111,2593.5,2593.4,0.77074]
[1751487524840,4.86071,2593.5,2593.4,0.77074]
[1751487525037,0.77074,2593.4,2593.3,0.77075]
[1751487525340,4.86073,2593.5,2593.4,0.77074]
[1751487526443,4.09,2593.5,2593.4,0.77074]
[1751487526740,1.9904,2593.5,2593.4,0.77074]
[1751487527939,2.76111,2593.5,2593.4,0.77074]
[1751487528540,1.9904,2593.5,2593.4,0.77074]
[1751487529245,2.76111,2593.5,2593.4,0.77074]
[1751487529744,4.73581,2593.5,2593.4,0.77074]
[1751487533040,2.76111,2593.5,2593.4,0.77074]
[1751487533242,0.77076,2593.4,2593.3,0.77074]
[1751487533445,2.76113,2593.5,2593.4,0.77074]
[1751487534547,4.69123,2593.5,2593.4,0.77074]
[1751487534740,0.77077,2593.4,2593.3,0.77075]
[1751487535746,0.77079,2593.3,2593.2,0.77077]
[1751487536349,2.77669,2593.3,2593.2,0.81215803]
[1751487537048,2.77669,2593.3,2593.2,0.04138803]
[1751487537343,1.9904,2593.5,2593.4,0.77074]
[1751487537544,11.122,2593.6,2593.5,0.77071]
[1751487537744,12.02669001,2593.6,2593.5,0.77071]
[1751487538349,11.122,2593.6,2593.5,7.73806312]
[1751487538546,11.122,2593.6,2593.5,11.79456312]
[1751487538750,11.122,2593.6,2593.5,9.77026312]
[1751487539451,11.122,2593.6,2593.5,2.84429803]
[1751487541559,5.97815,2594.1,2594.0,0.77056]
[1751487541560,15.94433,2594.1,2594.0,0.77056]
[1751487541854,12.02690448,2594.1,2594.0,0.77056]
[1751487542060,11.122,2594.1,2594.0,0.77056]
[1751487542358,11.89253,2594.1,2594.0,0.81194803]
[1751487543658,11.89253,2594.1,2594.0,0.04138803]
[1751487543962,16.09403,2594.1,2594.0,0.04138803]
[1751487544359,0.77065,2593.7,2593.6,0.77066]
[1751487544763,0.77064,2593.8,2593.7,0.77063]
[1751487544960,1.67603522,2593.8,2593.7,0.77063]
[1751487546160,0.77068,2593.7,2593.6,0.77067]
[1751487546361,0.90539522,2593.7,2593.6,0.77067]
[1751487547455,1.67604522,2593.7,2593.6,0.77067]
[1751487548864,0.90539522,2593.7,2593.6,0.77067]
[1751487549063,1.67604522,2593.7,2593.6,0.77067]
[1751487549265,1.67665939,2593.7,2593.6,0.77067]
[1751487549766,0.90600939,2593.7,2593.6,0.77067]
[1751487549960,1.67665939,2593.7,2593.6,0.77067]
[1751487550162,0.90600939,2593.7,2593.6,0.77067]
[1751487550668,1.67665939,2593.7,2593.6,0.77067]
[1751487550868,0.90600939,2593.7,2593.6,0.77067]
[1751487551765,1.67665939,2593.7,2593.6,0.77067]
[1751487551967,0.90600939,2593.7,2593.6,0.77067]
[1751487552658,1.67665939,2593.7,2593.6,0.77067]
[1751487554667,0.90600939,2593.7,2593.6,0.77067]
[1751487554859,1.67665939,2593.7,2593.6,0.77067]
[1751487556265,0.90600939,2593.7,2593.6,0.77067]
[1751487557368,1.67665939,2593.7,2593.6,0.77067]
[1751487559371,0.77071,2593.6,2593.5,0.77068]
[1751487559671,3.72041939,2593.6,2593.5,0.77068]
[1751487560871,2.94970939,2593.6,2593.5,0.77068]
[1751487561569,2.94970939,2593.6,2593.5,4.0997764]
[1751487563273,3.72038939,2593.6,2593.5,4.0997764]
[1751487563775,2.94970939,2593.6,2593.5,4.0997764]
[1751487564274,3.72038939,2593.6,2593.5,4.0997764]
[1751487565176,3.851,2593.3,2591.7,6.70218727]
[1751487565370,6.6581928,2591.8,2590.3,14.36527031]
[1751487565571,44.1290964,2590.4,2588.3,14.46017533]
[1751487565776,3.3290964,2588.5,2588.4,24.98181201]
[1751487565977,3.3290964,2588.5,2587.7,2.1389]
[1751487566173,3.3290964,2588.5,2587.7,2.45253638]
[1751487566373,3.3290964,2589.3,2587.8,23.65335193]
[1751487566569,7.1800964,2589.1,2588.3,3.3290964]
[1751487566875,3.3290964,2588.5,2587.8,2.1251]
[1751487567076,0.77235,2588.0,2587.9,13.97756193]
[1751487567278,4.87360504,2588.0,2587.0,26.41103833]
[1751487567582,2.29885718,2589.0,2587.9,13.97756193]
[1751487567774,1.54481531,2588.9,2588.0,6.9506641]
[1751487567975,0.7723,2588.2,2588.0,6.9506641]
[1751487568175,0.7723,2588.2,2588.1,11.24194193]
[1751487568481,1.54477553,2588.2,2588.1,11.24194193]
[1751487569076,2.31706553,2588.2,2588.1,11.24194193]
[1751487569277,1.54477553,2588.2,2588.1,11.24194193]
[1751487570179,3.02989475,2588.5,2588.1,16.24194193]
[1751487570481,3.02989475,2588.3,2588.2,13.33864193]
[1751487570681,3.78736844,2589.3,2588.6,5.18719545]
[1751487570874,3.78736844,2589.4,2589.2,5.18719545]
[1751487571075,0.77198,2589.3,2588.7,8.50783328]
[1751487571280,3.78736844,2589.4,2588.8,1.71192956]
[1751487571474,5.31014302,2589.7,2589.1,7.73571328]
[1751487571674,3.77501358,2589.6,2589.3,0.77196]
[1751487571879,4.54689358,2589.6,2589.2,9.17934893]
[1751487572079,4.54683358,2589.8,2589.4,0.77193]
[1751487572282,4.54683358,2589.8,2589.3,0.77195]
[1751487572483,3.77501358,2589.7,2589.3,0.77195]
[1751487572882,4.54683358,2589.8,2589.3,5.77195]
[1751487573176,0.77184,2589.7,2589.2,9.17934893]
[1751487573377,5.70469358,2589.6,2588.8,2.0671]
[1751487573585,0.77224,2588.4,2588.0,0.77233]
[1751487573778,0.77225,2588.4,2588.0,2.83943]
[1751487573980,0.77227,2588.3,2588.0,7.0671]
[1751487574173,1.9302,2588.9,2588.1,14.069]
[1751487574481,0.77227,2588.3,2588.1,1.964]
[1751487574680,0.77229,2588.2,2588.1,1.964]
[1751487575282,1.93027,2588.8,2588.1,1.964]
[1751487575479,0.77228,2588.3,2588.1,1.964]
[1751487575780,39.199,2589.3,2588.1,1.964]
[1751487575781,0.77224,2588.4,2588.1,1.964]
[1751487576179,0.77229,2588.2,2588.1,1.964]
[1751487576976,0.77227,2588.3,2588.1,1.964]
[1751487578284,1.9302,2588.9,2588.1,1.964]
[1751487578584,0.77223,2588.4,2588.1,1.964]
[1751487579380,0.77229,2588.2,2588.1,1.964]
[1751487579580,3.77501358,2588.6,2588.1,1.964]
[1751487579785,0.77221,2588.5,2588.1,1.964]
[1751487580085,0.77224,2588.4,2588.1,1.964]
[1751487580285,0.77226,2588.3,2588.1,2.7363]
[1751487580485,4.54726358,2588.4,2588.2,2.76819]
[1751487580780,0.77226,2588.3,2588.2,0.77229]
[1751487580983,3.77501358,2588.4,2588.3,0.77226]
[1751487581382,3.77501358,2588.4,2587.9,1.93095]
[1751487581579,3.77501358,2588.4,2587.5,12.113]
[1751487581781,1.93048,2588.6,2588.1,0.77232]
[1751487581982,1.9305,2588.5,2587.5,14.04423]
[1751487582183,13.46790177,2588.4,2587.9,0.77236]
[1751487582382,0.77235,2588.0,2587.9,0.77238]
[1751487582585,1.54508112,2588.0,2587.9,0.77238]
[1751487583684,2.31743112,2588.0,2587.9,0.77238]
[1751487583984,2.31743112,2588.0,2587.8,0.77239]
[1751487584185,1.54508112,2587.9,2587.8,0.77239]
[1751487584785,1.54508112,2587.9,2587.7,0.77242]
[1751487584982,11.92282065,2588.0,2587.1,1.93152]
[1751487584983,1.9311,2587.7,2587.1,0.77259]
[1751487585188,9.76585868,2587.3,2587.2,2.85168]
[1751487585383,11.3109398,2587.3,2587.2,2.85168]
[1751487585989,11.3109398,2587.3,2587.2,0.53358748]
[1751487586292,1.54508112,2587.3,2587.2,0.53358748]
[1751487587385,1.54508112,2587.3,2587.2,0.77258]
[1751487588193,11.92282065,2587.4,2587.3,0.77255]
[1751487588491,0.77252,2587.4,2587.3,0.77255]
[1751487588689,1.93114,2587.7,2586.9,1.93167]
[1751487588885,0.7726,2587.2,2587.1,0.7726]
[1751487589084,1.93124,2587.5,2587.1,0.54043269]
[1751487589288,0.37959328,2587.9,2587.2,0.540472]
[1751487589488,12.117,2588.1,2587.6,0.77244]
[1751487589690,0.77243,2587.8,2587.6,0.57928242]
[1751487589988,0.77243,2587.8,2587.6,0.77244]
[1751487590291,0.77243,2587.8,2587.7,0.57453015]
[1751487590493,1.54535143,2587.8,2587.7,0.77244]
[1751487591193,5.31772909,2587.8,2587.7,0.77244]
[1751487591393,1.54535143,2587.8,2587.7,0.77244]
[1751487592487,1.54535143,2587.8,2587.7,5.77244]
[1751487592685,5.33205953,2587.8,2587.7,5.77244]
[1751487593086,1.54535143,2587.8,2587.7,5.77244]
[1751487593495,1.54535143,2587.8,2587.7,0.77244]
[1751487594390,0.08184072,2587.8,2587.5,21.01005687]
[1751487594590,5.28138312,2587.9,2587.8,0.77241]
[1751487594786,9.91647354,2587.9,2587.8,0.77241]
[1751487594996,0.77243,2587.8,2587.7,0.77241]
[1751487595294,0.77242,2587.8,2587.7,0.77241]
[1751487595492,2.1689,2587.8,2587.7,0.77241]
[1751487595894,7.53454725,2588.2,2587.7,1.93108]
[1751487596096,8.30683725,2588.2,2588.1,0.77232]
[1751487596296,7.53454725,2588.2,2588.1,0.36212464]
[1751487596589,2.1689,2588.3,2588.1,0.36212464]
[1751487596796,6.03157042,2588.3,2588.2,0.36212464]
[1751487596992,6.80386042,2588.3,2588.2,1.13441464]
[1751487597394,7.53454725,2588.4,2588.2,1.13441464]
[1751487597395,7.53454725,2588.4,2588.3,0.77226]
[1751487597593,0.77222,2588.5,2588.4,0.77223]
[1751487597793,4.63489042,2588.5,2588.4,1.13435464]
[1751487597996,4.63489042,2588.5,2588.4,0.36212464]
[1751487598197,4.63489042,2588.5,2588.4,1.13435464]
[1751487599299,4.63489042,2588.5,2588.4,0.77223]
[1751487599500,3.86267042,2588.5,2588.4,0.77223]
[1751487599898,6.79427042,2588.5,2588.4,0.77223]
[1751487600500,12.16945455,2588.5,2588.4,0.77223]
[1751487601004,12.16945455,2588.5,2588.0,1.93086]
[1751487601301,3.8390118,2588.1,2588.0,0.77235]
[1751487603212,3.8390118,2588.2,2588.1,0.77232]
[1751487604010,5.37518413,2588.7,2588.1,0.77232]
[1751487604011,5.37518413,2588.7,2588.6,0.77217]
[1751487604315,2.78989,2589.2,2589.1,0.77202]
[1751487604612,5.88057042,2589.2,2589.1,1.12407092]
[1751487604808,3.86267042,2589.2,2589.1,1.12407092]
[1751487605213,3.86267042,2589.2,2589.1,1.12395116]
[1751487605407,2.0179,2589.5,2589.2,0.77199]
[1751487605408,2.78982,2589.5,2589.2,0.77199]
[1751487605611,5.88057042,2589.5,2589.4,0.77193]
[1751487605809,6.65250042,2589.5,2589.4,0.35177775]
[1751487606009,6.65250042,2589.5,2589.4,1.12370775]
[1751487606514,6.65250042,2589.5,2589.0,1.93011]
[1751487606515,0.77199,2589.3,2589.2,0.77196]
[1751487606709,1.26799257,2589.3,2589.2,0.77196]
[1751487607109,2.03995257,2589.3,2589.2,0.77196]
[1751487609713,1.26799257,2589.3,2589.2,0.77196]
[1751487609914,2.03995257,2589.3,2589.2,0.77196]
[1751487611614,0.77196,2589.3,2589.2,2.2031434]
[1751487611810,0.77196,2589.4,2589.3,0.77193]
[1751487612004,0.77196,2589.4,2589.3,2.2031134]
[1751487612209,4.63460042,2589.4,2589.3,5.25374625]
[1751487612404,2.79561285,2589.5,2589.4,0.77193]
[1751487612612,4.64038327,2589.5,2589.4,2.2031134]
[1751487613111,5.03341524,2589.5,2589.4,2.2031134]
[1751487613317,5.03341524,2589.5,2589.4,1.4311834]
[1751487613507,3.22494482,2589.5,2589.4,1.4311834]
[1751487613704,3.22494482,2589.5,2589.4,2.2031134]
[1751487615318,2.45302482,2589.5,2589.4,2.2031134]
[1751487615615,0.00579285,2589.5,2589.4,2.2031134]
[1751487616006,0.77178,2589.9,2589.4,2.2031134]
[1751487616211,4.63445042,2589.9,2589.8,0.77181]
[1751487616412,4.63445042,2589.9,2589.8,2.2029934]
[1751487618313,3.86267042,2589.9,2589.8,4.48627435]
[1751487618522,3.86267042,2589.9,2589.8,2.2029934]
[1751487619322,3.86267042,2589.9,2589.8,4.48691593]
[1751487619523,1.16725959,2590.0,2589.9,0.77178]
[1751487619718,5.02993001,2590.0,2589.9,1.4311834]
[1751487620126,5.02993001,2590.0,2589.9,2.2029634]
[1751487620720,3.86267042,2590.0,2589.9,2.03432234]
[1751487620923,3.90084423,2590.0,2589.9,2.03432234]
[1751487621124,3.90084423,2590.0,2589.9,3.16798533]
[1751487621523,3.90084423,2590.0,2589.9,4.32918485]
[1751487621819,3.90084423,2590.0,2589.9,2.80610234]
[1751487622025,3.90084423,2590.0,2589.9,2.03432234]
[1751487622216,0.77187,2589.6,2589.5,0.77189]
[1751487622420,4.0228,2589.9,2589.8,0.77181]
[1751487622722,12.19381922,2590.0,2589.9,0.77178]
[1751487623225,12.96556922,2590.0,2589.9,1.91435379]
[1751487623421,0.77184,2589.8,2589.7,0.77182]
[1751487623822,0.77188,2589.6,2589.2,1.92995]
[1751487624023,2.78246,2589.7,2589.6,0.77187]
[1751487624526,2.78244,2589.7,2589.6,0.77187]
[1751487625528,0.7718,2589.9,2589.8,0.77178]
[1751487627929,0.77181,2589.8,2589.7,1.91488781]
[1751487628427,0.77181,2589.8,2589.7,0.77182]
[1751487628722,0.77189,2589.6,2589.5,0.77187]
[1751487628926,0.77186,2589.7,2589.6,0.77184]
[1751487630230,2.77323,2589.8,2589.7,0.77184]
[1751487630730,0.38781922,2590.0,2589.9,0.77178]
[1751487630932,13.8064,2590.3,2590.1,0.77169]
[1751487631130,0.77173,2590.2,2590.1,0.77169]
[1751487631331,2.77313,2590.2,2590.1,1.91624377]
[1751487632334,2.77313,2590.2,2590.1,0.77169]
[1751487632932,3.16210873,2590.2,2590.1,0.77169]
[1751487633431,0.77177,2590.1,2590.0,0.77173]
[1751487633630,1.16067873,2590.2,2590.1,0.77172]
[1751487633833,2.0152,2590.7,2590.6,0.77157]
[1751487634033,2.78676,2590.7,2590.6,0.77157]
[1751487634234,2.78676,2590.7,2590.6,2.04577121]
[1751487634437,4.89366,2590.7,2590.6,2.42002504]
[1751487634634,4.89366,2590.7,2590.6,1.27420121]
[1751487635133,4.89366,2590.7,2590.6,2.41999678]
[1751487635433,5.28524172,2590.7,2590.6,2.41999678]
[1751487635634,5.28524172,2590.7,2590.6,3.19156678]
[1751487635836,5.28524172,2590.7,2590.6,2.04577121]
[1751487636031,5.28524172,2590.7,2590.6,3.19149654]
[1751487637736,43.06024172,2590.7,2590.6,3.19149654]
[1751487639340,42.66866,2590.7,2590.6,3.19149654]
[1751487639638,42.66866,2590.7,2590.6,2.41992654]
[1751487640135,42.58766,2590.7,2590.6,2.41992654]
[1751487640339,42.58766,2590.7,2590.6,1.27420121]
[1751487641140,42.58766,2590.7,2590.6,2.41960764]
[1751487641331,42.58766,2590.7,2590.6,2.41976896]
[1751487641835,42.58766,2590.7,2590.4,0.77161]
[1751487641836,0.7716,2590.5,2590.4,1.91717775]
[1751487643142,0.7716,2590.5,2590.4,1.14556775]
[1751487643840,0.77169,2590.2,2590.1,2.29110601]
[1751487644038,0.77175,2590.0,2589.9,3.06288601]
[1751487644237,0.77181,2589.8,2589.7,2.29110601]
[1751487644532,0.77181,2589.8,2589.7,0.77184]
[1751487644735,38.3638,2589.9,2589.8,0.77178]
[1751487644933,38.3638,2589.9,2589.6,2.29110601]
[1751487644934,37.592,2589.9,2589.6,2.29110601]
[1751487645136,0.77184,2589.7,2589.6,4.76085684]
[1751487645534,0.77184,2589.7,2589.6,3.98900684]
[1751487645733,0.77184,2589.7,2589.5,2.75177]
[1751487645734,0.77187,2589.6,2589.5,0.7719]
[1751487646537,39.52149,2589.9,2589.4,2.29110601]
[1751487646735,0.7719,2589.6,2589.5,0.77188]
[1751487647333,0.77193,2589.5,2589.4,0.77191]
[1751487647835,0.77193,2589.5,2589.4,2.46981083]
[1751487648038,0.77193,2589.5,2589.4,1.69790083]
[1751487648241,0.77199,2589.2,2589.1,2.29110601]
[1751487648441,0.77199,2589.2,2588.8,2.29110601]
[1751487648442,0.77208,2588.9,2588.8,2.29110601]
[1751487648637,0.7722,2588.5,2588.4,2.29110601]
[1751487648945,54.16352249,2588.8,2587.6,6.94532249]
[1751487649147,6.4182,2588.8,2588.3,0.77224]
[1751487649442,0.77221,2588.5,2588.2,0.77226]
[1751487649647,2.1398,2588.4,2587.9,1.69790083]
[1751487649943,0.77227,2588.3,2588.1,0.7723]
[1751487650143,0.77229,2588.2,2588.0,0.77233]
[1751487650351,0.77228,2588.3,2588.0,0.77233]
[1751487650542,2.91204,2588.4,2588.2,0.77228]
[1751487650738,11.22372249,2588.8,2588.0,1.69790083]
[1751487650944,0.77221,2588.5,2588.3,0.77224]
[1751487651345,0.77223,2588.4,2588.2,0.77227]
[1751487651746,0.77223,2588.4,2588.2,2.47017083]
[1751487651947,0.77223,2588.4,2588.3,0.77226]
[1751487652345,0.77223,2588.4,2588.2,0.77228]
[1751487652544,0.77223,2588.4,2588.3,0.77226]
[1751487652846,0.77223,2588.4,2588.2,2.47017083]
[1751487653040,0.77223,2588.4,2588.3,0.77226]
[1751487653244,0.77223,2588.4,2588.2,1.69790083]
[1751487653245,0.77223,2588.4,2588.2,2.47017083]
[1751487653640,51.5207,2588.7,2588.3,0.77226]
[1751487653641,0.77222,2588.5,2588.3,0.77226]
[1751487653839,2.1517,2588.7,2588.5,0.77218]
[1751487654040,37.497,2589.1,2588.8,0.77208]
[1751487654345,2.0946,2589.3,2588.9,0.77206]
[1751487654542,49.139,2589.2,2589.0,0.77205]
[1751487654741,49.139,2589.2,2588.3,3.95955]
[1751487654946,0.77211,2588.9,2588.3,5.65745083]
[1751487655144,0.77211,2588.9,2588.7,0.77213]
[1751487655347,2.0946,2588.8,2587.8,1.52616389]
[1751487655547,1.93049,2588.6,2587.8,1.52616389]
[1751487655742,13.7296,2588.5,2587.9,1.52616389]
[1751487655942,11.635,2588.5,2588.4,0.77223]
[1751487656146,12.4072,2588.5,2588.4,0.77223]
[1751487656350,0.77223,2588.4,2588.3,0.77224]
[1751487656850,0.77223,2588.4,2588.3,2.47016083]
[1751487657252,0.77223,2588.4,2588.3,1.69790083]
[1751487657448,0.77226,2588.3,2588.2,0.77227]
[1751487657750,0.77224,2588.4,2588.3,0.77225]
[1751487658147,12.40722,2588.5,2588.3,0.77223]
[1751487658347,0.77222,2588.5,2588.4,0.77223]
[1751487659545,38.29917,2588.6,2588.5,0.7722]
[1751487659745,0.7722,2588.5,2588.1,5.82430083]
[1751487659950,0.77223,2588.5,2588.4,0.77221]
[1751487660450,0.77222,2588.5,2588.4,0.7722]
[1751487660851,46.60288,2588.7,2588.6,0.77217]
[1751487661152,0.77219,2588.6,2588.5,0.77218]
[1751487662049,0.77209,2588.9,2588.8,0.77208]
[1751487662250,38.25107,2589.0,2588.9,0.77208]
[1751487662445,0.77204,2589.1,2589.0,0.77201]
[1751487662752,49.095,2589.2,2588.6,3.80910083]
[1751487662952,0.7721,2588.9,2588.8,0.77208]
[1751487663348,0.7721,2588.9,2588.8,1.69790083]
[1751487663549,1.93038,2588.7,2588.3,0.77221]
[1751487663847,0.77223,2588.4,2588.3,1.69790083]
[1751487664048,0.77223,2588.4,2588.3,2.47016083]